Cogmind - Beta 11.1 @@@ ROGUE MODE // 2022.08.28 @ 14:33:50 Player: ILikeVoltron Result: Destroyed by as-72184 with Assembled Rifle Performance ------------- Evolutions (0) 0 Regions Visited (2) 400 Robots Destroyed (6) 30 Value Destroyed (211) 211 Prototype IDs (0) 0 Alien Tech Used (0) 0 Bonus (0) 0 TOTAL SCORE: 641 Bonus ------- None Cogmind --------- Core Integrity 0/250 Matter 197/300 Energy 350/350 System Corruption 0% Temperature Cool (0) Movement Core (500) Ox9 Location -10/Mines Parts ------- > --- POWER (1) -------- (None) > --- PROPULSION (2) --- (None) > --- UTILITY (2) ------ Large Storage Unit High-capacity Battery > --- WEAPON (2) ------- Assault Rifle Battle Cannon > --- INVENTORY (15) --- Ion Engine Wheel Large Storage Unit High-capacity Matter Pod (200) High-capacity Matter Pod (200) Structural Scanner Sensor Array Signal Interpreter Core Shielding Weapon Shielding Light Armor Plating Light Assault Rifle Light Cannon Mining Laser Peak State ------------ > --- POWER ------------ Light Ion Engine > --- PROPULSION ------- Aluminum Leg Aluminum Leg > --- UTILITY ---------- Large Storage Unit High-capacity Battery > --- WEAPON ----------- Assault Rifle Assault Rifle > --- INVENTORY -------- Ion Engine Wheel Compact Wheel Large Storage Unit High-capacity Matter Pod Sensor Array Signal Interpreter Core Shielding Light Assault Rifle Grenade Launcher [Rating: 8] Favorites ----------- Power Light Ion Engine Engine Light Ion Engine Propulsion Aluminum Leg Leg Aluminum Leg Utility High-capacity Battery Storage High-capacity Battery Weapon Assault Rifle Ballistic Gun Assault Rifle Ballistic Cannon Light Cannon Launcher Grenade Launcher Build | -11 -10 -10 ------- Run | Scr Mat Min Slots Evolved . | . . . Power . | . . . Propulsion . | . . . Utility . | . . . Weapon . | . . . Parts Attached 10 | . 5 5 Power 1 | . 1 . Engine 1 | . 1 . Core . | . . . Reactor . | . . . Propulsion 2 | . 2 . Treads . | . . . Leg 2 | . 2 . Wheel . | . . . Hover . | . . . Flight . | . . . Utility 2 | . 2 . Device . | . . . Storage 2 | . 2 . Processor . | . . . Hackware . | . . . Protection . | . . . Artifact . | . . . Weapon 5 | . . 5 Energy Gun . | . . . Energy Cannon . | . . . Ballistic Gun 2 | . . 2 Ballistic Cannon 2 | . . 2 Launcher 1 | . . 1 Special Weapon . | . . . Impact Weapon . | . . . Slashing Weapon . | . . . Piercing Weapon . | . . . Special Melee Weapon . | . . . Unidentified Prototypes . | . . . Parts Lost 3 | . . 3 Power 1 | . . 1 Propulsion 2 | . . 2 Utility . | . . . Weapon . | . . . Highest Loss Streak 3 | . . 3 To Critical Strikes . | . . . Average Slot Usage (%) 99 | . 98 99 Engine 13 | . 14 13 Leg 27 | . 28 27 Storage 27 | . 26 28 Ballistic Gun 25 | . 28 24 Ballistic Cannon 2 | . . 3 Naked Turns . | . . . Heaviest Build 32 | 12 31 32 Greatest Support 20 | 20 20 20 Greatest Overweight (x) 1 | . 1 1 Average Overweight (x) . | . . 1 Largest Inventory Capacity 15 | . 15 15 Average Capacity 12 | . 9 15 Most Carried 15 | . 14 15 Average Carried 12 | . 8 14 Final Capacity 15 | 8 15 15 Final Carried 14 | 6 14 14 Class Distribution -------------------- 100% | Mutant Dominant Class ---------------- Mutant | -10/Materials Mutant | -10/Mines Resources | -11 -10 -10 ----------- Run | Scr Mat Min Matter Collected 969 | 184 143 642 Remotely . | . . . Salvage Created 324 | . 193 131 Parts 16 | . 13 3 Haulers Intercepted . | . . . Recyclers Shooed 3 | . 3 . Parts Field Recycled . | . . . Retrieved Matter . | . . . Parts Self-Destructed . | . . . Prevented . | . . . Kills | -11 -10 -10 ------- Run | Scr Mat Min Combat Hostiles Destroyed 7 | . 3 4 Guns 5 | . 3 2 Cannons 2 | . . 2 Classes Destroyed 4 | . 2 2 Recycler 1 | . 1 . Grunt 3 | . 3 . Sentry 2 | . . 2 Assembled 2 | . . 2 Best Kill Streak 3 | . 3 1 Combat Bots Only 2 | . 2 1 Max Kills in Single Turn 1 | . 1 1 Gunslinging . | . . . Exploded . | . . . Melee . | . . . Uniques/NPCs Destroyed . | . . . Combat | -11 -10 -10 -------- Run | Scr Mat Min Damage Taken 871 | . 189 682 Core 251 | . 40 211 Absorbed by Shields . | . . . Core Remaining (%) 100 | 100 . . Volleys Fired 45 | . 19 26 Largest 2 | . 2 2 Hottest 59 | . 40 59 Shots Fired 86 | . 38 48 Gun 74 | . 38 36 Cannon 12 | . . 12 Launcher . | . . . Special . | . . . Kinetic 86 | . 38 48 Thermal . | . . . Explosive . | . . . Electromagnetic . | . . . Robot Hit Streak 11 | . 10 11 Robot Miss Streak 7 | . 5 7 Penetration Max . | . . . Secondary Targets . | . . . Shots Hit Robots 48 | . 23 25 Core Hits 15 | . 9 6 Critical Kills . | . . . Critical Parts Destroyed . | . . . Critical Strikes . | . . . Melee Attacks . | . . . Impact . | . . . Slashing . | . . . Piercing . | . . . Sneak Attacks . | . . . Combat Hostiles . | . . . Follow-up Attacks . | . . . Damage Inflicted 653 | . 287 366 Guns 534 | . 287 247 Cannons 119 | . . 119 Explosions . | . . . Melee . | . . . Ramming . | . . . Kinetic 653 | . 287 366 Thermal . | . . . Explosive . | . . . Electromagnetic . | . . . Impact . | . . . Slashing . | . . . Piercing . | . . . Highest Corruption . | . . . Average Corruption . | . . . Corruption Purged . | . . . Corruption Blocked . | . . . Overload Shots . | . . . Overflow Damage . | . . . Projectiles . | . . . Explosions . | . . . Melee . | . . . Knockbacks 4 | . . 4 Impact . | . . . Kinetic 4 | . . 4 Secondary . | . . . Self-Inflicted Damage . | . . . Shots . | . . . Rammed . | . . . Targets Rammed . | . . . Kicked . | . . . Crushed . | . . . Highest Temperature 2 | . 2 2 Average Temperature 2 | . 2 2 Received Heat Transfer 150 | . 105 45 Siege Activations . | . . . Robots Corrupted . | . . . Combat Hostiles . | . . . Parts Fried . | . . . Impact Corruptions . | . . . Robots Melted . | . . . Combat Hostiles . | . . . Parts Melted . | . . . Heat Transferred . | . . . Parts Sabotaged . | . . . Parts Stolen . | . . . Parts Stripped . | . . . Power Chain Reactions . | . . . Missiles Intercepted . | . . . Alert | -11 -10 -10 ------- Run | Scr Mat Min Peak Influence 123 | . 123 82 Initial 47 | . . 47 Average 46 | . 61 37 Maximum Alert Level . | . . . Low Security (%) 100 | . 100 100 Level 1 . | . . . Level 2 . | . . . Level 3 . | . . . Level 4 . | . . . Level 5 . | . . . High Security . | . . . Max Security . | . . . Squads Dispatched 2 | . 2 . Investigation 1 | . 1 . Extermination . | . . . Reinforcement 1 | . 1 . Assault . | . . . Garrison . | . . . Intercept . | . . . Searches Triggered . | . . . Construction Impeded . | . . . Haulers Reinforced . | . . . Active Scanning Responses . | . . . Cargo Convoy Interrupts . | . . . Stealth | -11 -10 -10 --------- Run | Scr Mat Min Distress Signals . | . . . Communications Jammed . | . . . Distress Signals . | . . . Times Spotted 14 | . 8 6 Peak Tracking Total 3 | . 3 3 Tactical Retreats 1 | . 1 . Traps | -11 -10 -10 ------- Run | Scr Mat Min Traps Triggered 1 | . 1 . Indirectly . | . . . Trap Hack Attempts . | . . . Triggered . | . . . Disarmed . | . . . Reprogrammed . | . . . Reused . | . . . Traps Extracted . | . . . Installed . | . . . Triggered . | . . . Machines | -11 -10 -10 ---------- Run | Scr Mat Min Machines Disabled . | . . . Max in Single Turn . | . . . Machines Sabotaged . | . . . Garrisons Compromised . | . . . Overloaded Fab Kills . | . . . Hacking | -11 -10 -10 --------- Run | Scr Mat Min Machines Accessed . | . . . Terminals . | . . . Fabricators . | . . . Repair Stations . | . . . Recycling Units . | . . . Scanalyzers . | . . . Garrison Access . | . . . Total Hacks . | . . . Successful . | . . . Failed . | . . . Catastrophic . | . . . Database Lockouts . | . . . Manual . | . . . Terminals . | . . . Fabricators . | . . . Repair Stations . | . . . Recycling Units . | . . . Scanalyzers . | . . . Garrison Access . | . . . Terminal Hacks . | . . . Fabricator Hacks . | . . . Repair Station Hacks . | . . . Recycling Unit Hacks . | . . . Scanalyzer . | . . . Garrison Access Hacks . | . . . Unauthorized Hacks . | . . . Terminals . | . . . Fabricators . | . . . Repair Stations . | . . . Recycling Units . | . . . Scanalyzers . | . . . Garrison Access . | . . . Data Cores Recovered . | . . . Used . | . . . Hacking Detections . | . . . Full Trace Events . | . . . Feedback Events . | . . . Feedback Blocked . | . . . Robot Schematics Acquired . | . . . Robots Built . | . . . Authchips . | . . . Time . | . . . Total Robot Build Rating . | . . . Part Schematics Acquired . | . . . Parts Built . | . . . Authchips . | . . . Time . | . . . Total Part Build Rating . | . . . Parts Repaired . | . . . Time . | . . . Parts Recycled . | . . . Recycled Matter . | . . . Retrieved Matter . | . . . Retrieved Components . | . . . Parts Scanalyzed . | . . . Part Schematics Acquired . | . . . Parts Damaged . | . . . Bothacking | -11 -10 -10 ------------ Run | Scr Mat Min Used RIF Installer . | . . . Robots Hacked . | . . . Non-combat . | . . . Combat . | . . . Robot Hacks Applied . | . . . Relay Couplers Released . | . . . Fabnet Peak Effective % . | . . . Robots Rewired . | . . . Allies Hacked . | . . . Hacks Repelled . | . . . Allies | -11 -10 -10 -------- Run | Scr Mat Min Total Allies . | . . . Largest Group . | . . . Highest-Rated Group . | . . . Highest-Rated Ally . | . . . Total Orders . | . . . Ally Attacks . | . . . Total Damage . | . . . Kills . | . . . Allies Corrupted . | . . . Allies Melted . | . . . Intel | -11 -10 -10 ------- Run | Scr Mat Min Robot Analysis Total . | . . . Derelict Logs Recovered 2 | . . 2 Drone Launches . | . . . Drone Recoveries . | . . . Exploration | -11 -10 -10 ------------- Run | Scr Mat Min Turns Passed 953 | . 357 596 Spaces Moved 474 | 1 211 262 Core . | . . . Treads . | . . . Legs 474 | 1 211 262 Wheels . | . . . Hover . | . . . Flight . | . . . Fastest Speed 120 | 120 120 190 Average Speed 163 | 120 131 190 Slowest Speed 190 | 120 190 190 Overloaded Moves . | . . . Propulsion Burnouts . | . . . Robots Hopped . | . . . Cave-ins Triggered . | . . . Exploration Rate (%) 32 | 2 39 57 Regions Visited 2 Branch Regions 1 Pre-discovered Areas 1 | . . 1 Known Exits Taken . | . . . Unknown Exits Taken 2 | 1 1 . Scrap Searched . | . . . Spaces Dug . | . . . Terrain Destroyed 1 | . . 1 Melee . | . . . Projectile 1 | . . 1 AOE . | . . . Terrain Rammed . | . . . Walls Destroyed . | . . . Machines Disabled . | . . . Actions | -11 -10 -10 --------- Run | Scr Mat Min Total 572 | . 256 316 Wait 15 | . 4 11 Move 472 | . 210 262 Hop . | . . . Pick Up 16 | . 11 5 Fast Attach 3 | . 1 2 Attach 1 | . . 1 Detach . | . . . Swap 6 | . 4 2 Drop 14 | . 7 7 Fire 45 | . 19 26 Melee . | . . . Ram . | . . . Kick . | . . . Crush . | . . . Escape Stasis . | . . . Rewire . | . . . Trap . | . . . Miscellaneous . | . . . Route ------- -11/Scrapyard -10/Materials -10/Mines (discovered 1 exit: [*Mat]) History --------- Turn | Location | Event 1 | -11/Scrapyard | Discovered new exit (range 0) 1 | -11/Scrapyard | Entered Materials 301 | -10/Materials | Build established: Mutant 307 | -10/Materials | Discovered new exit (range 16) 358 | -10/Materials | Entered Mines 390 | -10/Mines | Learned location of Zion (-6) 406 | -10/Mines | Discovered new exit (range 10) 453 | -10/Mines | Learned 2 Materials zone layouts 602 | -10/Mines | A weapon hastily lodged in a ceiling crevice suddenly fell to the ground 740 | -10/Mines | Assembled infested the area 918 | -10/Mines | Core integrity fell below 50% 948 | -10/Mines | Core integrity fell below 20% 954 | -10/Mines | Destroyed by as-72184 with Assembled Rifle Last Messages --------------- 00784_ Acquired 58 matter. 00788_ Acquired 2 matter. 00792_ Dropped Assault Rifle. 00795_ Acquired Lgt. Cannon. 00800_ Acquired Lgt. Assault Rifle. 00804_ Dropped Lgt. Assault Rifle. 00807_ Dropped Mining Laser. 00808_ Acquired Weapon Shielding. 00810_ Acquired 30 matter. 00908_ as-72184 knocked back. 00922_ as-89885 destroyed. 00925_ as-72184 knocked back. 00928_ Acquired 2 matter. 00942_ Grenade Launcher severed. 00942_ Lgt. Ion Engine destroyed. 00942_ Aluminum Leg destroyed. 00943_ Destroyed Asb. Hover Unit. 00943_ as-72184 knocked back. 00949_ as-10053 destroyed. 00950_ Aluminum Leg destroyed. Map ----- +----------------------------------------------------+ | ???????# [![ #????????????????? #????? | | ???????## [%##????????????????# ###??? | | ???????###++#####????????????## ?? | | ???????# = #??????????### ? | | ???????# #?????????## ? | | ???????# #????????## ? | | ???????# #???????## ?? | | ???????# ####???## ??? | | ???????# ## #?## ??? | | ???##### # ## ## #??? | | ???# # #?# #??? | | ???# ## ## #?# #??? | | ???# ## #?# #?# #??? | | ???# ## #??# ### #??? | | ???# ###########??## #??? | | ???# #????????????## a ## #??? | | ??## ##???????????# ## #### | | ??# ##??????????# ## # | | ??# ##????????## % ####### ### | | ??# ##????#### ##?????# #?? | | ??# #???##% #??????########?? | | ??## ##?## % ##???????????????? | | ???## ### a% ###????????????????? | | ????## ;#??????????????????? | | ?????### % ##???????????????????? | | ???????#### @ #????????????????????? | | ??????????## #????????????????????? | | ???????????# ##????????????????????? | | ????????#### ##????????????????????? | | ????????# ##???????????????????? | | ????????# #???????????????????? | | ????????# ##### #???????????????????? | | ????????# #???## ##???????????????????? | | ?????#### #########????????????????????? | | ?????# #?????????????????????? | | ?????# """ """ #?????????????????????? | | ?????# """ """ #?????????????????????? | | ?????# """ """ #?????????????????????? | | ?????# #?????????????????????? | | ?????# #?????????????????????? | | ?????# #?????????????????????? | | ?????# #?????????????????????? | | ?????#############?????????????????????? | | ???????????????????????????????????????? | | ???????????????????????????????????????? | | | | | | | | | | | +----------------------------------------------------+ Best States ------------- Heat Dissipation 25 Energy Generation 10 Energy Capacity 375 Matter Stores 300 Matter Capacity 300 Sight Range 16 Terrain Scan Density 10 Evasion (%) 55 Item Schematics ----------------- None Robot Schematics ------------------ None Fabricated ------------ Nothing Alien Tech Used ----------------- None Achievements -------------- None Challenges ------------ None Game ------ Seed LayeredOpticalExtractor Manual? 0 Play Time 00:10:03 Cumulative 65.7 hours Start 2022.08.28 @ 14:26:46 End 2022.08.28 @ 14:33:50 Sessions 1 Manual Loads 0 Difficulty Rogue Special Mode None Game No. 91 Rogue 87 Adventurer 0 Explorer 4 Win Type - Total 0 Types 0/0/0/0/0/0/0/0/0 Lore% 19 Gallery% 35 Achievement% 28 Wizard Run 0 Options --------- ASCII 0 Keyboard 1 Movement Arrows Keybinds 0 Fullscreen 2 Font 24/Crisp Map View 113x50 Tactical HUD 1 Map Filters NONE Filters NONE Steam 1 RUN: e05c47b3-da12-440f-8c49-d4093e655268